bitfinex/quotes_SOLUSD_20251019
["timestamp","ask_amount","ask_price","bid_price","bid_amount"]
[1760864305914,102.1,184.68,184.66,0.92]
[1760864307117,105.42887142,184.68,184.66,0.92]
[1760864307822,3.32887142,184.67,184.66,0.2]
[1760864308229,3.32887142,184.67,184.66,0.92]
[1760864308939,105.42887142,184.68,184.66,0.92]
[1760864310246,102.1,184.68,184.66,0.92]
[1760864310941,0.68,184.67,184.66,0.2]
[1760864311136,4.00887142,184.67,184.66,0.2]
[1760864311335,3.32887142,184.67,184.66,0.2]
[1760864312142,4.00887142,184.67,184.66,0.2]
[1760864313746,41.35179757,184.67,184.66,0.2]
[1760864317448,43.52364499,184.67,184.66,0.2]
[1760864319438,40.19477357,184.67,184.66,0.2]
[1760864319644,43.52364499,184.67,184.66,0.2]
[1760864324461,40.67179757,184.67,184.66,0.2]
[1760864326241,29.79532236,184.67,184.66,0.2]
[1760864326451,26.20887142,184.67,184.66,0.91]
[1760864328050,37.80534663,184.67,184.66,0.2]
[1760864328356,40.67252064,184.67,184.66,0.2]
[1760864334343,29.79604543,184.67,184.66,0.91]
[1760864334658,29.79604543,184.67,184.66,0.2]
[1760864335869,26.46717401,184.67,184.66,0.2]
[1760864336063,29.79604543,184.67,184.66,0.2]
[1760864337370,40.67252064,184.67,184.66,0.2]
[1760864338373,41.39252064,184.67,184.66,0.2]
[1760864338751,40.67252064,184.67,184.66,0.2]
[1760864342068,40.67252064,184.67,184.66,0.91]
[1760864342264,40.67252064,184.67,184.66,0.2]
[1760864350555,41.37252064,184.67,184.66,0.2]
[1760864350864,18.49252064,184.67,184.66,0.2]
[1760864351260,20.66448599,184.67,184.66,0.2]
[1760864354775,16.63561457,184.67,184.66,0.87]
[1760864354975,14.20534663,184.67,184.66,0.2]
[1760864355182,17.79252064,184.67,184.66,0.2]
[1760864355391,17.79252064,184.67,184.66,0.87]
[1760864355570,17.79252064,184.67,184.66,0.2]
[1760864356278,14.46364922,184.67,184.66,0.2]
[1760864356487,17.79252064,184.67,184.66,0.2]
[1760864356659,17.79252064,184.67,184.66,0.87]
[1760864363998,17.79252064,184.67,184.66,0.2]
[1760864366889,14.46364922,184.67,184.66,0.2]
[1760864367090,17.79252064,184.67,184.66,0.2]
[1760864367410,3.58717401,184.67,184.66,0.2]
[1760864367701,5.41404372,184.71,184.66,0.87]
[1760864367702,6.91604543,184.68,184.66,0.87]
[1760864367897,6.91604543,184.68,184.67,0.67]
[1760864367898,22.88,184.68,184.67,0.67]
[1760864368076,26.47361409,184.68,184.67,0.67]
[1760864369501,22.88,184.68,184.67,0.67]
[1760864371505,26.20887142,184.68,184.67,0.67]
[1760864375709,29.79690252,184.68,184.67,0.67]
[1760864375905,26.20887142,184.68,184.67,0.67]
[1760864376310,22.88,184.68,184.67,0.67]
[1760864376508,102.1,184.7,184.67,0.67]
[1760864377593,105.42887142,184.7,184.67,0.67]
[1760864380714,3.32887142,184.68,184.66,0.2]
[1760864380912,3.32887142,184.67,184.66,0.2]
[1760864381391,26.86887142,184.67,184.66,0.2]
[1760864381592,29.04048302,184.67,184.66,0.2]
[1760864381791,39.91695823,184.67,184.66,0.2]
[1760864382018,43.50173015,184.67,184.66,0.2]
[1760864382917,48.91679486,184.67,184.66,0.2]
[1760864383419,10.87647521,184.66,184.64,0.2]
[1760864383712,6.91364334,184.65,184.64,0.2]
[1760864383913,7.60364334,184.65,184.64,0.2]
[1760864384121,18.48011855,184.65,184.64,0.2]
[1760864384502,14.89534663,184.65,184.64,0.2]
[1760864384828,10.87647521,184.63,184.62,0.2]
[1760864385124,10.87647521,184.6,184.54,0.66]
[1760864385414,3.32887142,184.55,184.54,0.66]
[1760864385617,3.32887142,184.55,184.53,0.66]
[1760864385923,3.32887142,184.54,184.52,0.2]
[1760864386119,3.32887142,184.53,184.52,0.2]
[1760864386500,3.32887142,184.53,184.52,0.86]
[1760864388830,28.50075428,184.55,184.52,0.86]
[1760864389004,3.32887142,184.53,184.52,0.86]
[1760864391533,3.32887142,184.54,184.52,0.86]
[1760864391720,3.32887142,184.54,184.53,0.66]
[1760864392438,26.20887142,184.54,184.53,0.66]
[1760864393139,26.20887142,184.54,184.52,0.2]
[1760864393323,3.32887142,184.53,184.52,0.86]
[1760864393910,22.88,184.54,184.52,0.86]
[1760864394130,3.32887142,184.55,184.52,0.86]
[1760864394308,3.32887142,184.55,184.53,0.66]
[1760864394512,26.20887142,184.54,184.52,0.2]
[1760864394814,3.32887142,184.53,184.52,0.2]
[1760864395121,3.32887142,184.53,184.52,0.86]
[1760864395435,3.32887142,184.53,184.52,0.2]
[1760864395729,3.32887142,184.53,184.52,0.86]
[1760864396323,22.88,184.54,184.52,0.86]
[1760864396530,26.20887142,184.54,184.52,0.86]
[1760864396737,26.20887142,184.54,184.53,0.66]
[1760864396943,3.32887142,184.54,184.53,0.66]
[1760864397414,3.32887142,184.54,184.52,0.2]
[1760864397615,3.32887142,184.53,184.52,0.2]
[1760864399231,3.32887142,184.54,184.52,0.86]
[1760864399857,3.32887142,184.53,184.52,0.2]
[1760864400633,4.01887142,184.53,184.52,0.2]
[1760864400943,14.89534663,184.53,184.52,0.2]
[1760864401134,23.64339108,184.53,184.52,0.2]
[1760864401831,33.75647521,184.51,184.47,0.2]
[1760864402038,37.08534663,184.48,184.47,0.2]
[1760864402529,40.14896434,184.48,184.47,0.2]
[1760864403453,39.45896434,184.48,184.47,0.2]
[1760864403862,40.14896434,184.48,184.47,0.2]
[1760864404267,45.56960614,184.48,184.47,0.2]
[1760864405341,33.75647521,184.44,184.43,0.2]
[1760864405546,37.08534663,184.44,184.43,0.2]
[1760864405752,37.77534663,184.44,184.43,0.2]
[1760864405934,39.94990967,184.44,184.43,0.2]
[1760864407240,45.37172706,184.44,184.43,0.2]
[1760864407443,33.75647521,184.4,184.39,0.2]
[1760864407645,37.08534663,184.4,184.39,0.2]
[1760864407853,37.77534663,184.4,184.39,0.2]
[1760864408054,39.95038265,184.4,184.39,0.2]
[1760864410851,39.26038265,184.4,184.39,0.2]
[1760864411060,35.93151123,184.4,184.39,0.2]
[1760864411244,39.26038265,184.4,184.39,0.2]
[1760864411445,26.20887142,184.4,184.39,0.9]
[1760864411654,22.88,184.4,184.39,0.9]
[1760864412460,10.87647521,184.47,184.39,0.9]
[1760864412670,3.32887142,184.44,184.4,0.7]
[1760864412856,3.32887142,184.41,184.39,11.12795632]
[1760864413173,3.32887142,184.41,184.39,0.2]
[1760864413174,14.90534663,184.4,184.39,0.2]
[1760864413370,25.83330295,184.4,184.39,0.2]
[1760864416177,22.50443153,184.4,184.39,0.2]
[1760864416353,31.25629644,184.4,184.39,0.2]
[1760864418271,25.13330295,184.4,184.39,0.2]
[1760864418682,25.84330295,184.4,184.39,0.2]
[1760864418851,31.26629644,184.4,184.39,0.2]
[1760864419054,33.75647521,184.36,184.33,0.91]
[1760864419258,3.32887142,184.34,184.33,0.91]
[1760864420275,12.79250143,184.34,184.27,8.41030303]
[1760864420460,3.32887142,184.28,184.27,8.41030303]
[1760864420663,14.20534663,184.28,184.27,8.41030303]
[1760864420861,14.91534663,184.28,184.27,8.41030303]
[1760864421094,33.75647521,184.24,184.23,9.41115702]
[1760864421265,41.12421805,184.24,184.2,0.2]
[1760864421460,33.75647521,184.2,184.11,3.54525952]
[1760864421664,10.87647521,184.17,184.13,9.41115702]
[1760864421976,26.20887142,184.17,184.15,0.71]
[1760864422181,22.88,184.17,184.16,0.91]
[1760864422389,3.32887142,184.2,184.16,0.91]
[1760864422581,3.32887142,184.2,184.17,0.71]
[1760864422582,3.32887142,184.19,184.17,0.71]
[1760864422768,3.32887142,184.18,184.16,0.2]
[1760864422968,3.32887142,184.17,184.16,0.2]
[1760864423363,26.20887142,184.19,184.16,0.91]
[1760864423564,10.87647521,184.22,184.17,0.71]
[1760864423882,3.32887142,184.2,184.18,0.71]
[1760864424195,3.32887142,184.19,184.18,0.71]
[1760864424395,3.32887142,184.19,184.16,0.91]
[1760864424599,3.32887142,184.17,184.16,0.2]
[1760864425087,3.32887142,184.17,184.16,0.91]
[1760864426172,3.32887142,184.17,184.16,0.2]
[1760864427074,26.20887142,184.17,184.16,0.2]
[1760864428181,33.75647521,184.17,184.16,0.2]
[1760864428369,37.08534663,184.17,184.16,0.2]
[1760864429287,26.20887142,184.17,184.16,0.2]
[1760864429668,37.08534663,184.17,184.16,0.2]
[1760864430189,10.87647521,184.16,184.14,9.87286501]
[1760864430392,10.87647521,184.12,184.1,9.80371901]
[1760864430588,10.87647521,184.11,184.1,9.80371901]
[1760864430980,14.20534663,184.11,184.1,9.80371901]
[1760864431698,14.91534663,184.11,184.1,9.80371901]
[1760864431986,24.84991963,184.11,184.1,9.80371901]
[1760864432186,14.91534663,184.11,184.1,9.80371901]
[1760864432366,20.34688212,184.11,184.1,9.80371901]
[1760864432569,10.87647521,184.11,184.1,9.80371901]
[1760864432776,14.20534663,184.11,184.1,9.80371901]
[1760864433778,14.91534663,184.11,184.1,9.80371901]
[1760864433973,14.20534663,184.11,184.1,9.80371901]
[1760864434397,9.934573,184.14,184.1,10.51371901]
[1760864434603,3.32887142,184.12,184.11,0.71]
[1760864435175,14.20534663,184.12,184.1,9.80371901]
[1760864435397,3.32887142,184.11,184.1,10.51371901]
[1760864435601,14.20534663,184.11,184.1,10.51371901]
[1760864436470,14.20534663,184.11,184.1,9.80371901]
[1760864436676,14.91534663,184.11,184.1,9.80371901]
[1760864437796,10.87647521,184.11,184.1,10.51371901]
[1760864437995,37.08534663,184.11,184.1,10.51371901]
[1760864439498,37.08534663,184.11,184.1,9.80371901]
[1760864439702,33.75647521,184.11,184.1,10.51371901]
[1760864440015,37.08534663,184.11,184.1,10.51371901]
[1760864440201,14.20534663,184.11,184.1,9.80371901]
[1760864440510,37.08534663,184.11,184.1,9.80371901]
[1760864441279,33.75647521,184.11,184.1,9.80371901]
[1760864441479,37.08534663,184.11,184.1,10.51371901]
[1760864442085,37.08534663,184.11,184.1,9.80371901]
[1760864442800,37.08534663,184.11,184.1,10.51371901]
[1760864443302,37.08534663,184.11,184.1,9.80371901]
[1760864443886,14.89534663,184.11,184.1,9.80371901]
[1760864444086,14.20534663,184.11,184.1,9.80371901]
[1760864445296,37.08534663,184.11,184.1,9.80371901]
[1760864445483,14.20534663,184.11,184.1,9.80371901]
[1760864446809,14.20534663,184.11,184.1,10.47371901]
[1760864447903,14.20534663,184.11,184.1,9.80371901]
[1760864448501,14.14417183,184.11,184.1,9.80371901]
[1760864449313,14.14417183,184.11,184.1,10.47371901]
[1760864450899,3.32887142,184.11,184.1,10.47371901]
[1760864451194,10.87647521,184.15,184.1,10.47371901]
[1760864451411,3.32887142,184.13,184.11,0.67]
[1760864452015,3.32887142,184.13,184.12,0.67]
[1760864452016,37.08534663,184.13,184.12,0.67]
[1760864452196,10.87647521,184.12,184.1,9.80371901]
[1760864452390,14.20534663,184.11,184.1,9.80371901]
[1760864452589,14.89534663,184.11,184.1,9.80371901]
[1760864453488,14.20534663,184.11,184.1,9.80371901]
[1760864453911,37.08534663,184.11,184.1,9.80371901]
[1760864454385,33.75647521,184.11,184.1,9.80371901]
[1760864454586,37.08534663,184.11,184.1,9.80371901]
[1760864459222,33.75647521,184.11,184.1,10.47371901]
[1760864459420,26.20887142,184.11,184.1,10.47371901]
[1760864461511,3.32887142,184.12,184.1,10.47371901]
[1760864461714,3.32887142,184.14,184.11,0.67]
[1760864461913,10.87647521,184.14,184.11,0.67]
[1760864462130,3.32887142,184.13,184.12,0.67]
[1760864464635,102.1,184.17,184.12,9.43010762]
[1760864464827,102.1,184.22,184.15,3.32887142]
[1760864465026,14.43815093,184.21,184.16,0.67]
[1760864465226,22.88,184.18,184.16,0.67]
[1760864465414,22.88,184.18,184.15,3.32887142]
[1760864465613,3.32887142,184.22,184.17,3.32887142]
[1760864465812,3.32887142,184.23,184.18,3.99887142]
[1760864466011,3.5704134,184.22,184.2,3.32887142]
[1760864466211,6.89928482,184.24,184.21,0.67]
[1760864466504,6.89928482,184.23,184.19,0.67]
[1760864466745,3.32887142,184.23,184.18,3.32887142]
[1760864467042,22.88,184.23,184.2,0.67]
[1760864467335,3.32887142,184.26,184.2,3.99887142]
[1760864467517,9.40163746,184.32,184.22,3.32887142]
[1760864467518,3.32887142,184.27,184.22,3.32887142]
[1760864467723,3.32887142,184.28,184.23,9.4266552]
[1760864467915,3.32887142,184.28,184.24,0.67]
[1760864468110,6.90067425,184.28,184.25,0.67]
[1760864468729,3.32887142,184.27,184.23,0.67]
[1760864469032,3.32887142,184.27,184.24,0.67]
[1760864469033,26.20887142,184.27,184.24,0.67]
[1760864469341,26.20887142,184.27,184.22,3.32887142]
[1760864469342,3.32887142,184.3,184.25,3.99887142]
[1760864469512,0.1,184.32,184.26,3.99887142]
[1760864469717,0.1,184.32,184.23,0.54279976]
[1760864469718,3.42887142,184.32,184.27,9.42549942]
[1760864470015,3.42887142,184.32,184.28,0.69]
[1760864470016,3.32887142,184.3,184.28,0.69]
[1760864470230,3.32887142,184.29,184.26,0.69]
[1760864470421,3.32887142,184.28,184.27,0.69]
[1760864470617,3.32887142,184.29,184.27,0.69]
[1760864471114,3.32887142,184.3,184.28,0.69]
[1760864472140,22.88,184.31,184.29,0.69]
[1760864473141,0.1,184.32,184.3,0.69]
[1760864473338,0.1,184.32,184.3,4.01887142]
[1760864473514,0.1,184.32,184.26,0.54271138]
[1760864473515,3.42887142,184.32,184.26,0.54271138]
[1760864473714,3.32887142,184.31,184.26,4.01887142]
[1760864473919,3.32887142,184.29,184.27,0.69]
[1760864474213,3.32887142,184.29,184.23,22.88]
[1760864474214,3.32887142,184.29,184.25,0.69]
[1760864474414,3.32887142,184.31,184.26,4.01887142]
[1760864474635,3.32887142,184.31,184.27,0.69]
[1760864474840,3.32887142,184.3,184.28,0.69]
[1760864475032,0.1,184.32,184.29,0.69]
[1760864475221,3.32887142,184.31,184.29,0.69]
[1760864475436,0.1,184.32,184.3,0.69]
[1760864475732,0.1,184.32,184.31,0.69]
[1760864475914,0.1,184.32,184.28,3.32887142]
[1760864476119,0.1,184.32,184.29,0.69]
[1760864476335,0.1,184.32,184.3,0.69]
[1760864476515,0.1,184.32,184.3,4.01887142]
[1760864476722,0.1,184.32,184.31,0.69]
[1760864478049,0.1,184.32,184.29,0.69]
[1760864478643,3.32887142,184.3,184.26,0.69]
[1760864478844,3.32887142,184.28,184.25,0.69]
[1760864479143,3.32887142,184.28,184.26,0.69]
[1760864479939,3.32887142,184.28,184.24,6.1174147]
[1760864480132,3.32887142,184.28,184.25,0.69]
[1760864480445,3.32887142,184.29,184.26,0.69]
[1760864480747,3.32887142,184.29,184.27,0.69]
[1760864481119,22.88,184.31,184.25,6.11730064]
[1760864481441,3.32887142,184.3,184.26,0.69]
[1760864481632,3.32887142,184.3,184.25,5.42730064]
[1760864481633,4.01887142,184.3,184.25,5.42730064]
[1760864481837,3.32887142,184.3,184.26,0.69]
[1760864482021,26.20887142,184.31,184.26,0.69]
[1760864482220,26.89887142,184.31,184.26,0.69]
[1760864482920,22.88,184.31,184.26,9.44595801]
[1760864483119,22.98,184.32,184.28,3.32887142]
[1760864483327,22.98,184.32,184.28,0.69]
[1760864483731,23.67,184.32,184.27,3.32887142]
[1760864483926,23.67,184.32,184.27,4.01887142]
[1760864484131,22.98,184.32,184.28,0.69]
[1760864484343,22.98,184.32,184.29,0.69]
[1760864484547,22.98,184.32,184.27,9.44558077]
[1760864484851,22.98,184.32,184.28,0.69]
[1760864485020,4.01887142,184.31,184.26,5.42707503]
[1760864485219,4.01887142,184.31,184.26,0.69]
[1760864485423,4.01887142,184.3,184.26,0.69]
[1760864486061,3.32887142,184.3,184.26,0.69]
[1760864486528,0.69,184.29,184.24,3.32887142]
[1760864486858,3.32887142,184.26,184.21,6.11839877]
[1760864487025,3.32887142,184.27,184.22,4.01887142]
[1760864487227,102.79,184.3,184.23,4.56167118]
[1760864487426,102.1,184.3,184.24,4.01887142]
[1760864487621,3.32887142,184.29,184.24,0.69]
[1760864487923,3.32887142,184.27,184.22,0.69]
[1760864488135,3.32887142,184.27,184.23,0.69]
[1760864488346,4.01887142,184.27,184.23,0.69]
[1760864488739,102.1,184.3,184.23,0.69]
[1760864488960,105.42887142,184.3,184.24,4.01887142]
[1760864489157,102.1,184.3,184.26,3.32887142]
[1760864489348,106.11887142,184.3,184.25,0.69]
[1760864490264,4.01887142,184.29,184.23,6.1179677]
[1760864490466,4.01887142,184.29,184.23,9.44683912]
[1760864490642,0.69,184.29,184.24,3.32887142]
[1760864490844,105.42887142,184.3,184.25,0.69]
[1760864491067,4.01887142,184.29,184.23,4.01887142]
[1760864491263,3.32887142,184.27,184.21,3.32887142]
[1760864491467,3.32887142,184.27,184.21,4.01887142]
[1760864491653,102.1,184.3,184.26,3.32887142]
[1760864491848,0.69,184.29,184.23,0.54279976]
[1760864492069,0.69,184.29,184.25,3.32887142]
[1760864492247,102.1,184.3,184.26,0.69]
[1760864492449,102.79,184.3,184.25,3.32887142]
[1760864492676,102.79,184.3,184.26,0.69]
[1760864492677,102.1,184.3,184.26,0.69]
[1760864493655,102.79,184.3,184.25,8.75626283]
[1760864493857,0.1,184.32,184.29,3.32887142]
[1760864494062,0.1,184.32,184.31,3.32887142]
[1760864494255,0.1,184.32,184.3,0.69]
[1760864494457,0.1,184.32,184.29,8.75486475]
[1760864494660,0.1,184.32,184.3,0.69]
[1760864495275,22.88,184.29,184.2,0.69]
[1760864495585,3.32887142,184.23,184.2,0.69]
[1760864495753,3.32887142,184.23,184.21,0.69]
[1760864495953,22.88,184.25,184.21,0.69]
[1760864495954,3.32887142,184.24,184.21,0.69]
[1760864496154,3.32887142,184.22,184.17,5.42971343]
[1760864496367,3.32887142,184.2,184.13,0.54309455]
[1760864496576,3.32887142,184.18,184.13,6.12091797]
[1760864496760,3.32887142,184.18,184.14,0.69]
[1760864496960,3.32887142,184.18,184.15,0.69]
[1760864497457,4.01887142,184.17,184.12,0.69]
[1760864497661,3.32887142,184.17,184.13,0.69]
[1760864498069,3.32887142,184.18,184.12,3.32887142]
[1760864498378,3.32887142,184.18,184.13,6.12094552]
[1760864498563,4.01887142,184.18,184.13,6.12094552]
[1760864498773,3.32887142,184.17,184.13,0.69]
[1760864499983,3.32887142,184.14,184.1,9.80371901]
[1760864500187,3.32887142,184.14,184.1,10.49371901]
[1760864500493,3.32887142,184.13,184.1,9.80371901]
[1760864500993,3.32887142,184.13,184.1,10.49371901]
[1760864501294,22.88,184.16,184.1,15.2355309]
[1760864501477,26.20887142,184.16,184.11,0.69]
[1760864501678,26.20887142,184.16,184.12,0.69]
[1760864501875,0.69,184.18,184.13,0.69]
[1760864502065,0.69,184.21,184.13,0.69]
[1760864502267,3.32887142,184.19,184.13,4.01887142]
[1760864502465,26.89887142,184.2,184.14,3.32887142]
[1760864502990,3.32887142,184.21,184.15,4.01887142]
[1760864503189,4.01887142,184.22,184.16,4.01887142]
[1760864503392,18.99284022,184.32,184.18,3.32887142]
[1760864503393,0.69,184.26,184.18,3.32887142]
[1760864503693,3.32887142,184.25,184.19,4.01887142]
[1760864503899,3.32887142,184.25,184.19,9.44789406]
[1760864504467,3.32887142,184.24,184.2,0.7]
[1760864504676,3.32887142,184.24,184.16,0.7]
[1760864504677,3.32887142,184.21,184.16,0.7]
[1760864504882,3.32887142,184.2,184.16,0.7]
[1760864505093,3.32887142,184.2,184.15,3.87190698]
[1760864505094,3.32887142,184.19,184.15,5.43032827]
[1760864505280,3.32887142,184.19,184.14,5.43065036]
[1760864505589,3.32887142,184.19,184.14,6.13065036]
[1760864505788,3.32887142,184.18,184.14,5.43065036]
[1760864505995,3.99887142,184.2,184.16,5.43006081]
[1760864506200,3.32887142,184.21,184.17,0.7]
[1760864506402,10.87647521,184.24,184.18,4.02887142]
[1760864506693,10.87647521,184.24,184.17,0.54297659]
[1760864506694,0.67,184.31,184.23,3.32887142]
[1760864506898,3.42887142,184.32,184.27,3.32887142]
[1760864507098,3.42887142,184.32,184.28,0.7]
[1760864507298,0.1,184.32,184.29,0.7]
[1760864507611,0.1,184.32,184.29,4.02887142]
[1760864508081,0.1,184.32,184.29,6.12610316]
[1760864508499,0.1,184.32,184.29,9.45497458]
[1760864509101,0.1,184.32,184.29,6.12610316]
[1760864510589,0.1,184.32,184.28,3.32887142]
[1760864510789,3.32887142,184.29,184.24,1.24277029]
[1760864510989,3.32887142,184.28,184.24,0.54277029]
[1760864511187,3.32887142,184.27,184.23,5.42797171]
[1760864511409,3.32887142,184.26,184.23,6.12797171]
[1760864511610,3.32887142,184.26,184.22,5.42828025]
[1760864511822,3.32887142,184.26,184.22,6.12828025]
[1760864512022,3.32887142,184.24,184.2,6.12863251]
[1760864512209,124.98,184.29,184.19,5.42916002]
[1760864512210,3.32887142,184.23,184.19,5.42916002]
[1760864512531,3.32887142,184.24,184.2,0.7]
[1760864512717,3.32887142,184.23,184.2,0.7]
[1760864513103,0.67,184.27,184.2,6.12879545]
[1760864513104,3.32887142,184.24,184.2,6.12879545]
[1760864513425,3.32887142,184.22,184.17,9.45834877]
[1760864513625,3.32887142,184.22,184.18,0.7]
[1760864513819,3.32887142,184.22,184.19,0.7]
[1760864514004,3.32887142,184.21,184.17,5.42947735]
[1760864514207,3.32887142,184.2,184.16,6.13004234]
[1760864514504,3.32887142,184.21,184.17,0.7]
[1760864515020,3.32887142,184.21,184.16,5.43004234]
[1760864515231,3.32887142,184.22,184.18,0.7]
[1760864515407,3.32887142,184.22,184.19,0.7]
[1760864515610,3.32887142,184.21,184.19,0.7]
[1760864515805,3.32887142,184.2,184.15,10.00203909]
[1760864516123,22.88,184.23,184.16,0.7]
[1760864516306,3.32887142,184.2,184.16,0.7]
[1760864516644,3.32887142,184.21,184.16,0.7]
[1760864516806,3.32887142,184.2,184.16,0.7]
[1760864517206,3.32887142,184.2,184.16,6.12988804]
[1760864517527,3.32887142,184.18,184.13,3.32887142]
[1760864517731,3.32887142,184.17,184.13,0.7]
[1760864518110,3.32887142,184.16,184.13,0.7]
[1760864518414,139.18534663,184.23,184.1,15.93529204]
[1760864518415,3.32887142,184.15,184.1,15.93529204]
[1760864518614,3.32887142,184.14,184.1,15.23529204]
[1760864518916,3.32887142,184.16,184.11,4.02887142]
[1760864519220,3.32887142,184.16,184.11,3.32887142]
[1760864519421,3.99887142,184.15,184.1,15.23529204]
[1760864519729,3.32887142,184.14,184.1,15.23529204]
[1760864519924,3.99887142,184.13,184.1,9.80371901]
[1760864520627,3.32887142,184.14,184.1,9.80371901]
[1760864520834,26.20887142,184.15,184.11,0.7]
[1760864521037,26.20887142,184.15,184.1,15.23554821]
[1760864521038,22.88,184.15,184.1,15.23554821]
[1760864521222,22.88,184.15,184.1,9.80371901]
[1760864521223,3.99887142,184.14,184.1,9.80371901]
[1760864521427,3.32887142,184.14,184.1,15.93544681]
[1760864521822,22.88,184.15,184.11,0.7]
[1760864522024,26.20887142,184.15,184.11,0.7]
[1760864522219,3.32887142,184.14,184.1,15.23544681]
[1760864522421,3.32887142,184.14,184.1,15.93544681]
[1760864523152,3.32887142,184.14,184.1,10.50371901]
[1760864523327,3.32887142,184.14,184.1,15.23552264]
[1760864523647,3.32887142,184.15,184.1,15.93552264]
[1760864524026,3.32887142,184.15,184.1,19.26439406]
[1760864524643,3.99887142,184.14,184.1,9.80371901]
[1760864524842,3.32887142,184.14,184.1,15.93552331]
[1760864525050,26.20887142,184.15,184.1,15.93552331]
[1760864525227,3.99887142,184.15,184.1,19.26439473]
[1760864525427,26.87887142,184.15,184.1,19.26439473]
[1760864525847,3.32887142,184.11,184.1,9.80371901]
[1760864526052,3.99887142,184.11,184.1,9.80371901]
[1760864526226,128.30887142,184.14,184.1,9.80371901]
[1760864526432,124.98,184.14,184.11,0.7]
[1760864527924,128.97887142,184.14,184.1,9.80371901]
[1760864528340,128.30887142,184.14,184.1,9.80371901]
[1760864528744,128.97887142,184.14,184.1,9.80371901]
[1760864529050,3.32887142,184.12,184.1,9.80371901]
[1760864529255,0.67,184.12,184.1,9.80371901]
[1760864529547,3.99887142,184.11,184.1,9.80371901]
[1760864533466,14.87534663,184.11,184.1,9.80371901]
[1760864537250,11.54647521,184.11,184.1,9.80371901]
[1760864537456,14.87534663,184.11,184.1,9.80371901]
[1760864537637,14.20534663,184.11,184.1,9.80371901]
[1760864537840,3.32887142,184.14,184.1,10.47371901]
[1760864538065,3.32887142,184.16,184.11,3.99887142]
[1760864538371,3.32887142,184.16,184.12,0.67]
[1760864538944,3.32887142,184.14,184.1,9.80371901]
[1760864539149,3.32887142,184.12,184.1,9.80371901]
[1760864539953,3.32887142,184.12,184.1,10.47371901]
[1760864540365,3.32887142,184.12,184.1,9.80371901]
[1760864541472,0.71,184.22,184.11,4.54202496]
[1760864541764,3.32887142,184.2,184.14,3.32887142]
[1760864541971,3.32887142,184.16,184.12,0.67]
[1760864542180,22.88,184.17,184.13,0.67]
[1760864542466,22.88,184.17,184.11,3.87202496]
[1760864542467,3.32887142,184.16,184.11,3.87202496]
[1760864542655,3.32887142,184.16,184.14,0.67]
[1760864543038,22.88,184.17,184.15,0.67]
[1760864543261,26.20887142,184.17,184.15,0.67]
[1760864543447,26.20887142,184.17,184.16,0.67]
[1760864543647,3.32887142,184.19,184.16,0.67]
[1760864543950,3.32887142,184.18,184.16,0.67]
[1760864544357,22.88,184.2,184.12,8.75982349]
[1760864544561,3.32887142,184.19,184.16,0.67]
[1760864544764,3.32887142,184.19,184.17,0.67]
[1760864545067,3.32887142,184.18,184.17,0.67]
[1760864545452,22.88,184.2,184.17,0.67]
[1760864545676,3.32887142,184.19,184.17,0.67]
[1760864546172,3.32887142,184.19,184.15,0.67]
[1760864546372,3.32887142,184.18,184.16,0.67]
[1760864546675,22.88,184.2,184.14,5.43065059]
[1760864546860,3.32887142,184.18,184.17,0.67]
[1760864547358,4.03887142,184.18,184.12,5.43098745]
[1760864547565,3.32887142,184.16,184.12,6.10098745]
[1760864547767,3.32887142,184.16,184.13,0.67]
[1760864547963,3.32887142,184.16,184.14,0.67]
[1760864548364,3.32887142,184.16,184.12,5.43098745]
[1760864548566,3.32887142,184.16,184.13,0.67]
[1760864548905,22.88,184.18,184.14,0.67]
[1760864549088,26.20887142,184.18,184.15,0.67]
[1760864549647,22.88,184.18,184.16,0.67]
[1760864549884,3.32887142,184.2,184.17,0.67]